[Event "Budapest IM-A ONE WEEK Feb 2024"]
[Site "Budapest"]
[Date "2024.02.26"]
[Round "1.1"]
[White "Toth-Goczo, Melinda"]
[Black "Meessen, Rudolf"]
[Result "0-1"]
[ECO "A50"]
[WhiteElo "2201"]
[BlackElo "2169"]
[Annotator "RC"]
[PlyCount "122"]
[EventDate "2024.02.25"]
[EventType "tourn"]
[EventCountry "HUN"]
[SourceTitle "playchess.com"]
[Source "ChessBase"]
[SourceQuality "1"]
[TimeControl "5400+30"]

1. d4 {[%emt 0:00:04]} Nf6 {[%emt 0:00:20]} 2. c4 {[%emt 0:02:11]} b6 {[%emt 0:00:28]} 3. Nf3 {[%emt 0:02:01]} Bb7 {[%emt 0:00:24]} 4. Nc3 {[%emt 0:10:01]} e6 {[%emt 0:03:45]} 5. a3 {[%emt 0:00:06]} d5 {[%emt 0:00:15]} 6. cxd5 {[%emt 0:04:09]} Nxd5 {[%emt 0:00:06]} 7. Qc2 {[%emt 0:00:51]} Be7 {[%emt 0:05:07]} 8. e4 {[%emt 0:03:14]} Nxc3 {[%emt 0:00:22]} 9. bxc3 {[%emt 0:00:04]} O-O {[%emt 0:00:07]} 10. Bd3 {[%emt 0:03:04]} c5 {[%emt 0:02:30]} 11. O-O {[%emt 0:02:34]} Ba6 {[%emt 0:05:13]} 12. Bxa6 {[%emt 0:04:56]} Nxa6 {[%emt 0:00:05]} 13. Rd1 {[%emt 0:05:30]} Qc8 {[%emt 0:02:11]} 14. d5 {[%emt 0:15:57]} exd5 {[%emt 0:00:10]} 15. exd5 {[%emt 0:00:03]} h6 {[%emt 0:03:15]} 16. c4 {[%emt 0:08:20]} Bf6 {[%emt 0:01:37]} 17. Bb2 {[%emt 0:00:12]} Bxb2 {[%emt 0:01:12]} 18. Qxb2 {[%emt 0:00:04]} Qf5 {[%emt 0:05:05]} 19. Re1 {[%emt 0:02:31]} Rae8 {[%emt 0:02:52]} 20. Qb5 {[%emt 0:08:38]} Qc8 {[%emt 0:10:24]} 21. Ne5 {[%emt 0:02:40]} Nb8 {[%emt 0:02:15]} 22. d6 {[%emt 0:13:58]} Re6 {[%emt 0:00:08]} 23. Rad1 {[%emt 0:01:56]} Rd8 {[%emt 0:01:08]} 24. f4 {[%emt 0:03:39]} Rexd6 {[%emt 0:01:08]} 25. Rxd6 {[%emt 0:00:04]} Rxd6 {[%emt 0:00:05]} 26. Ng6 {[%emt 0:00:02]} Nc6 {[%emt 0:04:46]} 27. Nh4 {[%emt 0:02:58]} Re6 {[%emt 0:04:23]} 28. Qb1 {[%emt 0:00:58]} Nd4 {[%emt 0:00:47]} 29. Kf2 {[%emt 0:01:18]} Qe8 {[%emt 0:00:59]} 30. Rxe6 {[%emt 0:00:26]} Qxe6 {[%emt 0:00:06]} 31. Qd3 {[%emt 0:00:02]} Qf6 {[%emt 0:08:06]} 32. g3 {[%emt 0:00:07]} a6 {[%emt 0:05:48]} 33. a4 {[%emt 0:01:36]} Qe6 {[%emt 0:05:20]} 34. Nf3 {[%emt 0:01:14]} Nxf3 {[%emt 0:01:37]} 35. Kxf3 {[%emt 0:00:03]} f5 {[%emt 0:02:25]} 36. Qd8+ {[%emt 0:01:14]} Kh7 {[%emt 0:00:22]} 37. Qd3 {[%emt 0:00:20]} h5 {[%emt 0:00:48]} 38. h3 {[%emt 0:00:04]} a5 {[%emt 0:05:49]} 39. g4 {[%emt 0:00:28]} Kg6 {[%emt 0:05:09]} 40. g5 h4 {[%emt 0:00:39]} 41. Qe2 {[%emt 0:02:34]} Qc6+ {[%emt 0:01:19]} 42. Kf2 {[%emt 0:00:04]} Qd7 {[%emt 0:09:48]} 43. Qe5 {[%emt 0:00:45]} Qd2+ {[%emt 0:00:40]} 44. Kf3 {[%emt 0:00:30]} Qd3+ {[%emt 0:00:01]} 45. Kf2 {[%emt 0:00:25]} Qxc4 {[%emt 0:00:28]} 46. Qe8+ {[%emt 0:00:38]} Qf7 {[%emt 0:00:10]} 47. Qc6+ Kh5 {[%emt 0:00:40]} 48. Qf3+ {[%emt 0:00:18]} Kg6 {[%emt 0:00:01]} 49. Qc6+ {[%emt 0:00:02]} Kh7 {[%emt 0:00:18]} 50. Qxb6 {[%emt 0:00:15]} Qa2+ {[%emt 0:00:24]} 51. Kg1 Qa1+ {[%emt 0:00:58]} 52. Kg2 {[%emt 0:00:43]} Qa2+ {[%emt 0:00:08]} 53. Kg1 Qa3 54. Qxa5 {[%emt 0:02:13]} Qg3+ {[%emt 0:00:35]} 55. Kh1 {[%emt 0:00:13]} Qxh3+ {[%emt 0:00:02]} 56. Kg1 {[%emt 0:00:02]} Qg3+ {[%emt 0:00:12]} 57. Kh1 {[%emt 0:00:01]} h3 {[%emt 0:04:18]} 58. Qd2 {[%emt 0:00:51]} c4 {[%emt 0:00:06]} 59. a5 {[%emt 0:00:11]} c3 {[%emt 0:00:07]} 60. Qc2 {[%emt 0:00:05]} Qe1+ {[%emt 0:00:23]} 61. Kh2 {[%emt 0:00:09]} Qd2+ {[%emt 0:00:12]} 0-1

[Event "Budapest IM-A ONE WEEK Feb 2024"]
[Site "Budapest"]
[Date "2024.02.26"]
[Round "1.2"]
[White "Horvath, David"]
[Black "Ulasevich, Sergei"]
[Result "1/2-1/2"]
[ECO "A45"]
[WhiteElo "2330"]
[BlackElo "2261"]
[Annotator "TA"]
[PlyCount "37"]
[EventDate "2024.02.25"]
[EventType "tourn"]
[EventCountry "HUN"]
[SourceTitle "playchess.com"]
[Source "ChessBase"]
[SourceQuality "1"]
[TimeControl "5400+30"]

{[%evp 9,37,0,21,24,15,-5,-14,-4,-10,-16,0,0,-8,-11,15,0,0,-27,-17,-20,-12,-14,0,0,0,0,0,-7,0,-18]} 1. d4 {[%emt 0:00:04]} Nf6 {[%emt 0:00:13]} 2. Bg5 {[%emt 0:00:04]} d5 {[%emt 0:00:19]} 3. e3 {[%emt 0:02:44]} c5 {[%emt 0:00:59]} 4. Bxf6 {[%emt 0:08:05]} gxf6 {[%emt 0:00:13]} 5. dxc5 {[%emt 0:00:07]} e6 {[%emt 0:07:18][%cal Ob8c6]} 6. c4 {[%emt 0:04:38]} dxc4 {[%emt 0:03:29]} 7. Qxd8+ {[%emt 0:07:26]} Kxd8 {[%emt 0:00:09]} 8. Bxc4 {[%emt 0:00:13]} Bxc5 {[%emt 0:01:24]} 9. Nc3 {[%emt 0:03:03]} a6 {[%emt 0:17:50]} 10. Nf3 {[%emt 0:09:06]} b5 {[%emt 0:04:20]} 11. Bd3 {[%emt 0:00:07]} Bb7 {[%emt 0:00:57]} 12. Be4 {[%emt 0:07:29]} (12. Rc1 $5) 12... Nc6 {[%emt 0:03:58]} 13. Nd2 {[%emt 0:18:28]} f5 {[%emt 0:05:15]} 14. Bf3 {[%emt 0:00:51] The position is equal.} Rc8 {[%emt 0:00:23]} 15. Rc1 {[%emt 0:04:38][%cal Oc3b5]} Ba7 {[%emt 0:09:52]} 16. a4 {[%emt 0:12:26]} b4 {[%emt 0:10:02]} 17. Ne2 {[%emt 0:06:05]} Ke7 {[%emt 0:03:02][%cal Oc6e5]} 18. O-O {[%emt 0:03:17]} Rhd8 {[%emt 0:07:52]} 19. Rfd1 {[%emt 0:00:28] A rather calm draw.   Weighted Error Value: White=0.06 (flawless) /Black=0.07 (flawless) .  Inaccurate:     	White=2     	Black=1      OK:         	White=7     	Black=6} 1/2-1/2

[Event "Budapest IM-A ONE WEEK Feb 2024"]
[Site "Budapest"]
[Date "2024.02.26"]
[Round "1.3"]
[White "Papp, Sarah"]
[Black "Szeberenyi, Adam"]
[Result "1-0"]
[ECO "B40"]
[WhiteElo "2279"]
[BlackElo "2255"]
[Annotator "TA"]
[PlyCount "75"]
[EventDate "2024.02.25"]
[EventType "tourn"]
[EventCountry "HUN"]
[SourceTitle "playchess.com"]
[Source "ChessBase"]
[SourceQuality "1"]
[TimeControl "5400+30"]

{[%evp 20,75,26,7,1,0,45,32,114,110,115,111,143,119,141,46,38,33,107,108,109,114,110,114,113,108,107,127,111,106,155,147,168,183,879,890,911,911,902,879,871,870,868,878,937,878,4223,1863,29973,29974,29975,29976,29976,29976,29976,29977,29976,139]} 1. e4 {[%emt 0:00:03]} c5 {[%emt 0:00:09]} 2. Nf3 {[%emt 0:00:06]} e6 {[%emt 0:00:03]} 3. d4 {[%emt 0:00:04]} cxd4 {[%emt 0:00:03]} 4. Nxd4 {[%emt 0:00:04]} Nf6 {[%emt 0:00:03]} 5. Nc3 {[%emt 0:00:06]} Nc6 {[%emt 0:00:03]} 6. a3 {[%emt 0:00:05]} d5 {[%emt 0:03:02]} 7. exd5 {[%emt 0:00:30]} exd5 {[%emt 0:00:34]} 8. Bb5 {[%emt 0:02:05]} Bd7 {[%emt 0:00:12]} 9. O-O {[%emt 0:00:26]} Be7 {[%emt 0:02:08]} 10. Re1 {[%emt 0:05:05]} O-O {[%emt 0:01:20]} 11. Bg5 {[%emt 0:03:04]} Re8 {[%emt 0:16:40]} 12. Qd3 {[%emt 0:16:03]} Ng4 {[%emt 0:28:02]} 13. Bxe7 {[%emt 0:17:54]} Rxe7 {[%emt 0:00:23]} (13... Nxe7 $14 14. Qh3 Bxb5 15. Qxg4 (15. Ncxb5 Nf6 $11) 15... Bc6) 14. Nxd5 $16 {[%emt 0:15:00]} Rxe1+ {[%emt 0:07:46]} 15. Rxe1 {[%emt 0:00:02]} Nce5 {[%emt 0:00:10]} 16. Qb3 {[%emt 0:03:20] Weiß steht aktiver.} Bc6 {[%emt 0:04:31]} 17. Nxc6 {[%emt 0:09:57]} (17. Bxc6 $16 bxc6 18. Qb7 cxd5 19. h3) 17... bxc6 $14 {[%emt 0:00:04]} 18. h3 $1 {[%emt 0:00:33]} Rb8 {[%emt 0:12:19] Weiß verwandelt nun seinen Vorteil.} (18... Qh4 $1 $14 19. hxg4 Nxg4 20. Ne7+ (20. Bxc6 $2 Qxf2+ 21. Kh1 Qxe1#) 20... Kf8) 19. hxg4 $16 {[%emt 0:02:02]} Rxb5 {[%emt 0:00:16]} 20. Nb4 {[%emt 0:01:09] Zielt auf c4 ab.} Qd2 {[%emt 0:06:14]} 21. Qe3 {[%emt 0:02:50]} Qxe3 {[%emt 0:00:14]} 22. Rxe3 {[%emt 0:00:02][%cal Oc2c4][%mdl 4096] Endspiel. Und jetzt c4! wäre schön. KRN-KRN} f6 {[%emt 0:00:14][%cal Oc6c5]} 23. b3 {[%emt 0:07:04][%cal Bb2b3,Bb3b4][%mdl 32]} a5 {[%emt 0:08:26][%cal Ba7a5,Ba5a4][%mdl 32]} 24. Nd3 {[%emt 0:01:04]} Nxg4 {[%emt 0:00:07]} ({Günstiger ist} 24... Nxd3 25. Rxd3 Rc5) 25. Re4 {[%emt 0:03:00]} Ne5 {[%emt 0:06:55] [#]} 26. Nxe5 {[%emt 0:00:11]} Rxe5 {[%emt 0:00:07]} (26... fxe5 27. Rc4 Rd5) 27. Rxe5 $18 {[%emt 0:06:40]} fxe5 {[%emt 0:00:03] KP-KP} 28. b4 {[%emt 0:00:24]} a4 {[%emt 0:00:24]} 29. f3 {[%emt 0:01:31]} Kf7 {[%emt 0:02:01]} 30. Kf2 {[%emt 0:00:20]} Ke6 {[%emt 0:00:17]} 31. c4 {[%emt 0:00:06]} h5 {[%emt 0:02:04][%cal Bh7h5,Bh5h4][%mdl 32]} 32. Ke3 {[%emt 0:01:27]} h4 {[%emt 0:01:05]} 33. Ke4 {[%emt 0:00:50] Und f4 würde nun gewinnen.} g5 {[%emt 0:00:30] [#]} 34. b5 $1 {[%emt 0:01:14] Weiß setzt Matt.} cxb5 {[%emt 0:00:04]} 35. cxb5 {[%emt 0:00:04]} Kd6 {[%emt 0:00:07]} 36. b6 {[%emt 0:00:07]} Kc6 {[%emt 0:00:05]} 37. Kxe5 {[%emt 0:00:14]} Kxb6 {[%emt 0:00:30]} 38. Ke4 $2 {Gewichteter Fehlerwert: Weiß=0.12 (sehr präzise) /Schwarz=0.47.  Fehler:       	Weiß=1     	Schwarz=4     Ungenau:       	---       	Schwarz=1     OK:         	Weiß=5     	Schwarz=3     Bester:       	Weiß=3     	Schwarz=2     Stark:        	Weiß=1     	---} (38. Kf5 {setzt Matt} Kc5 39. Kxg5 Kc4 40. f4 (40. Kxh4 Kb3 $16) 40... Kb3 41. f5 (41. Kxh4 Kxa3 42. f5 Kb3 $16) 41... Kxa3 42. f6 (42. Kxh4 Kb3 $16) 42... Kb2 43. f7 (43. Kxh4 Kc1 $18)) 1-0

[Event "Budapest IM-A ONE WEEK Feb 2024"]
[Site "Budapest"]
[Date "2024.02.26"]
[Round "1.4"]
[White "Dudognon, Thibault"]
[Black "Jakab, Attila"]
[Result "1-0"]
[ECO "C06"]
[WhiteElo "2388"]
[BlackElo "2278"]
[Annotator "TA"]
[PlyCount "97"]
[EventDate "2024.02.25"]
[EventType "tourn"]
[EventCountry "HUN"]
[SourceTitle "playchess.com"]
[Source "ChessBase"]
[SourceQuality "1"]
[TimeControl "5400+30"]

{[%evp 23,97,32,43,27,24,30,14,23,64,56,54,72,58,60,72,81,64,64,60,-43,-44,-44,27,7,174,185,175,70,67,64,62,60,61,61,61,61,61,61,61,57,58,58,61,61,71,61,79,32,47,47,63,63,70,70,70,70,104,96,96,96,96,89,89,89,89,89,261,247,241,245,625,627,619,591,537,519]} 1. e4 {[%emt 0:00:06]} e6 {[%emt 0:00:22]} 2. d4 {[%emt 0:00:06]} d5 {[%emt 0:00:04]} 3. Nd2 {[%emt 0:00:09]} Nf6 {[%emt 0:00:06]} 4. e5 {[%emt 0:00:20]} Nfd7 {[%emt 0:00:04]} 5. Bd3 {[%emt 0:00:04]} c5 {[%emt 0:00:05]} 6. c3 {[%emt 0:00:04]} Nc6 {[%emt 0:00:04]} 7. Ne2 {[%emt 0:00:11]} cxd4 {[%emt 0:00:07]} 8. cxd4 {[%emt 0:00:06]} f6 {[%emt 0:00:03]} 9. exf6 {[%emt 0:00:07]} Nxf6 {[%emt 0:00:04]} 10. O-O {[%emt 0:00:24]} Bd6 {[%emt 0:00:04]} 11. Nf3 {[%emt 0:00:08]} Qc7 {[%emt 0:00:06]} 12. h3 {[%emt 0:00:11]} O-O {[%emt 0:00:12]} 13. Be3 {[%emt 0:00:05]} Bd7 {[%emt 0:00:14]} 14. Re1 {[%emt 0:00:05]} Be8 {[%emt 0:01:10]} 15. Ng5 {[%emt 0:02:19] The position is equal.} Qe7 {[%emt 0:05:14]} 16. Nf4 {[%emt 0:29:45] Dodges Bh5} Bxf4 {[%emt 0:13:32]} 17. Bxf4 {[%emt 0:00:08]} Ne4 {[%emt 0:00:05]} 18. Bxe4 {[%emt 0:00:07]} dxe4 {[%emt 0:00:14]} 19. Qg4 {[%emt 0:10:29] White is more active.} (19. Rxe4 $2 Rxf4 20. Rxf4 Qxg5 $19) (19. Be3 {simplifies} Bg6 20. Nxe6 Qxe6 21. d5) 19... Nxd4 {[%emt 0:02:58]} 20. Rxe4 {[%emt 0:01:06]} Qf6 {[%emt 0:01:25]} 21. Bd6 {[%emt 0:24:44]} (21. Nxe6 $2 Nxe6 22. Be3 Bf7 $19 (22... Qxb2 23. Qxe6+ Bf7 24. Qe5 $11)) ({Better is} 21. Be3 $14 e5 22. Bxd4 exd4 23. Qe6+ (23. Rxd4 Qxf2+ 24. Kh2 h6 $11) 23... Qxe6 24. Nxe6) 21... h5 $15 {[%emt 0:05:19]} 22. Qd1 $1 {[%emt 0:03:14] [#]} Qxg5 {[%emt 0:03:26]} 23. Bxf8 {[%emt 0:00:44]} (23. Qxd4 Rd8) 23... e5 {[%emt 0:02:54] [#]} (23... Nf5 $1 $11 {and Black has nothing to worry.} 24. f4 Qg6) 24. Be7 $1 $18 {[%emt 0:04:29][%mdl 512]} Qf5 {[%emt 0:02:43] [#]} (24... Qxe7 $2 {too greedy.} 25. Qxd4 exd4 26. Rxe7 $18) 25. Rxd4 {[%emt 0:03:42]} (25. Re3 $1 $18) 25... exd4 $14 {[%emt 0:01:46]} 26. Qxd4 {[%emt 0:00:11]} Bc6 {[%emt 0:00:17]} 27. Qc5 {[%emt 0:03:49]} Qg6 {[%emt 0:01:06]} 28. Qg5 {[%emt 0:00:06]} Qxg5 {[%emt 0:00:45]} 29. Bxg5 {[%emt 0:00:05][%mdl 4096] Endgame. KRB-KRB} Re8 {[%emt 0:00:26]} 30. Be3 {[%emt 0:00:09]} a6 {[%emt 0:00:02]} 31. Rd1 {[%emt 0:01:03]} Re5 {[%emt 0:00:42]} 32. Kh2 {[%emt 0:03:04]} Ra5 {[%emt 0:01:09]} 33. a3 {[%emt 0:00:27]} Rd5 {[%emt 0:00:09]} 34. Rc1 {[%emt 0:00:15]} Kf7 {[%emt 0:00:26]} 35. g4 {[%emt 0:01:04]} (35. h4 $16) 35... hxg4 {[%emt 0:02:25]} 36. hxg4 {[%emt 0:00:19]} Rd8 {[%emt 0:00:11]} 37. Kg3 {[%emt 0:00:11]} Rh8 {[%emt 0:00:14]} 38. Rc5 {[%emt 0:02:12]} g6 {[%emt 0:01:14]} 39. Rc4 {[%emt 0:02:28]} Rh1 {[%emt 0:05:21]} 40. Rf4+ {[%emt 0:01:14]} Ke6 {[%emt 0:00:04]} 41. Rf8 {[%emt 0:02:03]} Rb1 {[%emt 0:01:30]} 42. Bd4 {[%emt 0:00:42]} g5 {[%emt 0:03:24]} 43. f3 {[%emt 0:01:09]} Rd1 {[%emt 0:00:20]} 44. Bc3 {[%emt 0:02:28]} Rd7 $2 {[%emt 0:02:21]} (44... Rd5 $16 45. Rf6+ Ke7) 45. Rf6+ $18 {[%emt 0:00:20]} Ke7 {[%emt 0:00:18]} 46. Rf5 {[%emt 0:00:17]} Rd5 $2 {[%emt 0:00:03]} (46... Rd3 47. Bf6+ (47. Rxg5 Rxf3+ 48. Kh4 Kf8 $16) 47... Kf7) 47. Bf6+ {[%emt 0:00:35] White is clearly winning.} Ke6 {[%emt 0:00:04]} 48. Rxd5 {[%emt 0:00:03]} ({Weaker is} 48. Bxg5 Rxf5 49. gxf5+ Kxf5 $18) 48... Bxd5 {[%emt 0:00:04]} 49. Bxg5 {[%emt 0:00:04] Weighted Error Value: White=0.13 (very precise) /Black=0.25 (precise) .  Loses game:     	---       	Black=2      Mistake:       	White=3     	Black=2      Inaccurate:     	---       	Black=2      OK:         	White=12    	Black=15     Best:        	White=5     	Black=2      Strong:       	White=1     	---        Brilliant:      	White=1     	---} 1-0

[Event "Budapest IM-A ONE WEEK Feb 2024"]
[Site "Budapest"]
[Date "2024.02.26"]
[Round "1.5"]
[White "Foldes, Marton Gabor"]
[Black "Fodor, Balazs"]
[Result "0-1"]
[ECO "B10"]
[WhiteElo "2119"]
[BlackElo "2215"]
[Annotator "RC"]
[PlyCount "90"]
[EventDate "2024.02.25"]
[EventType "tourn"]
[EventCountry "HUN"]
[SourceTitle "playchess.com"]
[Source "ChessBase"]
[SourceQuality "1"]
[TimeControl "5400+30"]

1. e4 {[%emt 0:00:03]} c6 {[%emt 0:00:27]} 2. Nf3 {[%emt 0:00:06]} d5 {[%emt 0:00:08]} 3. Nc3 {[%emt 0:00:05]} dxe4 4. Nxe4 {[%emt 0:00:07]} Nf6 {[%emt 0:00:33]} 5. Qe2 {[%emt 0:00:06]} Nxe4 6. Qxe4 {[%emt 0:00:07]} Nd7 {[%emt 0:00:22]} 7. Bc4 {[%emt 0:01:37]} Nf6 {[%emt 0:00:09]} 8. Ne5 {[%emt 0:00:12]} e6 {[%emt 0:00:57]} 9. Qe2 {[%emt 0:03:18]} b5 {[%emt 0:00:09]} 10. Bb3 {[%emt 0:02:41]} Qc7 {[%emt 0:00:14]} 11. d4 {[%emt 0:05:55]} Bd6 {[%emt 0:00:10]} 12. O-O {[%emt 0:01:47]} O-O {[%emt 0:00:09]} 13. c3 {[%emt 0:02:57]} c5 {[%emt 0:03:33]} 14. Re1 {[%emt 0:10:26]} Bb7 {[%emt 0:16:24]} 15. Qxb5 {[%emt 0:25:08]} a5 {[%emt 0:05:51]} 16. Qd3 {[%emt 0:11:34]} cxd4 {[%emt 0:00:32]} 17. cxd4 {[%emt 0:00:57]} a4 {[%emt 0:01:19]} 18. Bd1 {[%emt 0:09:05]} Rfd8 {[%emt 0:09:33]} 19. Bf4 {[%emt 0:03:47]} Bb4 {[%emt 0:09:45]} 20. Re3 {[%emt 0:04:55]} Ba6 {[%emt 0:00:55]} 21. Qc2 {[%emt 0:02:44]} Qxc2 {[%emt 0:03:48]} 22. Bxc2 {[%emt 0:00:01]} Rxd4 {[%emt 0:04:29]} 23. Bg3 {[%emt 0:01:34]} Bd2 {[%emt 0:14:03]} 24. Ra3 {[%emt 0:00:38]} Bb5 {[%emt 0:01:16]} 25. Bd3 {[%emt 0:04:40]} Rb4 {[%emt 0:05:42]} 26. Bxb5 {[%emt 0:01:04]} Rxb5 {[%emt 0:00:07]} 27. Nc4 {[%emt 0:00:35]} Bb4 {[%emt 0:00:41]} 28. Rd3 {[%emt 0:00:19]} Nd5 {[%emt 0:02:33]} 29. Rad1 {[%emt 0:02:01]} Bc5 {[%emt 0:02:31]} 30. h3 {[%emt 0:01:58]} Rc8 {[%emt 0:03:45]} 31. b3 {[%emt 0:02:14]} axb3 {[%emt 0:00:58]} 32. Rxb3 {[%emt 0:01:35]} Rb4 {[%emt 0:01:05]} 33. Nd2 {[%emt 0:01:22]} Ra4 {[%emt 0:00:08]} 34. Rc1 {[%emt 0:01:07]} f5 {[%emt 0:00:35]} 35. Ra1 {[%emt 0:00:38]} Bd4 {[%emt 0:01:17]} 36. Re1 {[%emt 0:00:27]} f4 {[%emt 0:02:37]} 37. Bh4 {[%emt 0:00:15]} Rxa2 {[%emt 0:03:14]} 38. Nf3 {[%emt 0:00:30]} e5 {[%emt 0:02:13]} 39. Nxd4 {[%emt 0:00:52]} exd4 {[%emt 0:00:02]} 40. Rb7 {[%emt 0:00:28]} d3 {[%emt 0:01:12]} 41. Rd7 {[%emt 0:00:33]} d2 {[%emt 0:00:30]} 42. Rf1 {[%emt 0:00:09]} Nc3 {[%emt 0:00:23]} 43. Bg5 {[%emt 0:00:39]} h6 {[%emt 0:00:31]} 44. Be7 {[%emt 0:00:34]} Ne2+ {[%emt 0:00:37]} 45. Kh2 {[%emt 0:00:07]} Rc1 {[%emt 0:00:06]} 0-1

[Event "Budapest IM-A ONE WEEK Feb 2024"]
[Site "Budapest"]
[Date "2024.02.27"]
[Round "2.1"]
[White "Meessen, Rudolf"]
[Black "Fodor, Balazs"]
[Result "1/2-1/2"]
[ECO "D00"]
[WhiteElo "2169"]
[BlackElo "2215"]
[Annotator "RC"]
[PlyCount "30"]
[EventDate "2024.02.25"]
[EventType "tourn"]
[EventCountry "HUN"]
[SourceTitle "playchess.com"]
[Source "ChessBase"]
[SourceQuality "1"]
[TimeControl "5400+30"]

1. d4 {[%emt 0:00:06]} d5 {[%emt 0:08:31]} 2. Nc3 {[%emt 0:00:09]} Nf6 {[%emt 0:00:13]} 3. Bf4 {[%emt 0:00:06]} e6 {[%emt 0:00:11]} 4. e3 {[%emt 0:00:31]} Bb4 {[%emt 0:00:27]} 5. Nge2 {[%emt 0:00:06]} O-O {[%emt 0:00:09]} 6. a3 {[%emt 0:00:03]} Be7 {[%emt 0:00:12]} 7. Ng3 {[%emt 0:00:13]} c5 {[%emt 0:00:28]} 8. dxc5 {[%emt 0:00:25]} Bxc5 {[%emt 0:00:11]} 9. Bd3 {[%emt 0:00:37]} Nc6 {[%emt 0:00:10]} 10. O-O {[%emt 0:00:30]} Bd6 {[%emt 0:06:44]} 11. Bxd6 {[%emt 0:04:31]} Qxd6 {[%emt 0:00:08]} 12. Nh5 {[%emt 0:07:45]} Nxh5 {[%emt 0:05:29]} 13. Qxh5 {[%emt 0:01:40]} g6 {[%emt 0:00:08]} 14. Qh6 {[%emt 0:01:06]} Rd8 {[%emt 0:12:37]} 15. Rad1 {[%emt 0:10:54]} Qf8 {[%emt 0:05:42]} 1/2-1/2

[Event "Budapest IM-A ONE WEEK Feb 2024"]
[Site "Budapest"]
[Date "2024.02.27"]
[Round "2.2"]
[White "Jakab, Attila"]
[Black "Foldes, Marton Gabor"]
[Result "1/2-1/2"]
[ECO "E54"]
[WhiteElo "2278"]
[BlackElo "2119"]
[Annotator "TA"]
[PlyCount "40"]
[EventDate "2024.02.25"]
[EventType "tourn"]
[EventCountry "HUN"]
[SourceTitle "playchess.com"]
[Source "ChessBase"]
[SourceQuality "1"]
[TimeControl "5400+30"]

{[%evp 21,40,-8,-12,-12,27,21,22,10,47,12,10,12,14,11,15,10,7,8,3,13,21]} 1. d4 {[%emt 0:19:36]} Nf6 {[%emt 0:00:09]} 2. c4 {[%emt 0:00:04]} e6 {[%emt 0:00:04]} 3. Nc3 {[%emt 0:00:03]} Bb4 {[%emt 0:00:04]} 4. e3 {[%emt 0:00:04]} O-O {[%emt 0:00:05]} 5. Bd3 {[%emt 0:00:04]} c5 {[%emt 0:00:04]} 6. Nf3 {[%emt 0:00:03]} d5 {[%emt 0:00:04]} 7. O-O {[%emt 0:00:04]} dxc4 {[%emt 0:00:02]} 8. Bxc4 {[%emt 0:00:05]} cxd4 {[%emt 0:00:04]} 9. exd4 {[%emt 0:00:04]} b6 {[%emt 0:00:04]} 10. Bg5 {[%emt 0:00:05]} Bb7 {[%emt 0:00:04]} 11. Qd3 {[%emt 0:00:07]} Nbd7 {[%emt 0:00:04]} 12. Rad1 {[%emt 0:00:19]} Be7 {[%emt 0:27:10]} 13. Rfe1 {[%emt 0:00:44]} h6 {[%emt 0:13:03]} 14. Bh4 {[%emt 0:00:56]} a6 {[%emt 0:07:03]} 15. d5 {[%emt 0:05:11]} exd5 {[%emt 0:13:57] The position is equal.} 16. Nxd5 {[%emt 0:01:42]} Bxd5 {[%emt 0:01:28]} 17. Bxd5 {[%emt 0:01:06]} Nxd5 {[%emt 0:00:06]} 18. Bxe7 {[%emt 0:00:36]} ({Resist} 18. Qxd5 $6 Bxh4 19. Qxd7 Qxd7 20. Rxd7 Bf6 $16) 18... Nxe7 {[%emt 0:00:05]} 19. Qxd7 {[%emt 0:00:05]} Qxd7 {[%emt 0:00:44]} 20. Rxd7 {[%emt 0:00:04]} Ng6 {[%emt 0:01:49] A rather calm draw.   Weighted Error Value: White=0.07 (flawless) /Black=0.14 (very precise) .  Inaccurate:     	White=1     	Black=2      OK:         	White=3     	Black=1} 1/2-1/2